[Event "*** Titled Tuesday Blitz"]
[Site "Chess.com"]
[Date "2021.02.02"]
[Round "5"]
[White "ApacheSVD"]
[Black "andy_rekt"]
[Result "1-0"]
[WhiteElo "2420"]
[BlackElo "2237"]
[TimeControl "180+1"]
[EndTime "10:59:18 PST"]
[Termination "ApacheSVD won by resignation"]

1. e4 {[%clk 0:03:00.9]} 1... e6 {[%clk 0:02:57.6]} 2. d4 {[%clk 0:03:00.6]}
2... d5 {[%clk 0:02:55.7]} 3. Nd2 {[%clk 0:03:01]} 3... Be7 {[%clk 0:02:54.3]}
4. exd5 {[%clk 0:02:57.3]} 4... exd5 {[%clk 0:02:54.1]} 5. Bd3 {[%clk 0:02:58]}
5... Nf6 {[%clk 0:02:47.2]} 6. Ne2 {[%clk 0:02:51.9]} 6... Nbd7 {[%clk
0:02:39.1]} 7. O-O {[%clk 0:02:51.6]} 7... c5 {[%clk 0:02:31.4]} 8. c3 {[%clk
0:02:49.5]} 8... O-O {[%clk 0:02:29.6]} 9. Nf3 {[%clk 0:02:47]} 9... Ne4 {[%clk
0:02:28]} 10. Be3 {[%clk 0:02:43.7]} 10... b6 {[%clk 0:02:20.9]} 11. Ng3 {[%clk
0:02:39]} 11... Bb7 {[%clk 0:02:18.6]} 12. Qc2 {[%clk 0:02:37.7]} 12... Nxg3
{[%clk 0:02:07.7]} 13. hxg3 {[%clk 0:02:37.6]} 13... Nf6 {[%clk 0:02:05]} 14.
Ne5 {[%clk 0:02:32.3]} 14... Rc8 {[%clk 0:01:38.9]} 15. Bf5 {[%clk 0:02:21.9]}
15... Rc7 {[%clk 0:01:37.4]} 16. Qe2 {[%clk 0:02:07.5]} 16... Bd6 {[%clk
0:01:32.2]} 17. Bf4 {[%clk 0:01:56.8]} 17... Re8 {[%clk 0:01:30.6]} 18. Rfe1
{[%clk 0:01:45.2]} 18... Rce7 {[%clk 0:01:30.6]} 19. Qc2 {[%clk 0:01:37]} 19...
Ne4 {[%clk 0:01:24.9]} 20. f3 {[%clk 0:01:27.2]} 20... Nf6 {[%clk 0:00:56.1]}
21. g4 {[%clk 0:01:22.7]} 21... g6 {[%clk 0:00:49.5]} 22. Bd3 {[%clk 0:01:18.5]}
22... Qc7 {[%clk 0:00:37.9]} 23. Qf2 {[%clk 0:01:09.5]} 23... Nd7 {[%clk
0:00:33.3]} 24. Nxd7 {[%clk 0:00:52.6]} 24... Qxd7 {[%clk 0:00:27.6]} 25. Bxd6
{[%clk 0:00:47.9]} 25... Qxd6 {[%clk 0:00:28.1]} 26. Rxe7 {[%clk 0:00:47.9]}
26... Rxe7 {[%clk 0:00:29]} 27. Re1 {[%clk 0:00:46.8]} 27... Kf8 {[%clk
0:00:18.8]} 28. Rxe7 {[%clk 0:00:44.3]} 28... Qxe7 {[%clk 0:00:18.5]} 29. Qe2
{[%clk 0:00:44.8]} 29... Qxe2 {[%clk 0:00:17.5]} 30. Bxe2 {[%clk 0:00:45.7]}
30... Ke7 {[%clk 0:00:18.1]} 31. Kf2 {[%clk 0:00:45.7]} 31... Kd6 {[%clk
0:00:17.5]} 32. g5 {[%clk 0:00:44.9]} 32... Ke6 {[%clk 0:00:14.9]} 33. g4 {[%clk
0:00:42.4]} 33... f6 {[%clk 0:00:13.8]} 34. f4 {[%clk 0:00:35]} 34... fxg5
{[%clk 0:00:13.8]} 35. fxg5 {[%clk 0:00:35.9]} 35... Kf7 {[%clk 0:00:12.1]} 36.
Ke3 {[%clk 0:00:35.9]} 36... Kg7 {[%clk 0:00:11.8]} 37. Kf4 {[%clk 0:00:36.4]}
37... h6 {[%clk 0:00:12]} 38. Bf3 {[%clk 0:00:35.4]} 38... hxg5+ {[%clk
0:00:11.5]} 39. Kxg5 {[%clk 0:00:36.3]} 39... Kf7 {[%clk 0:00:10.5]} 40. Bd1
{[%clk 0:00:31.2]} 40... cxd4 {[%clk 0:00:07.8]} 41. cxd4 {[%clk 0:00:32.1]}
41... Bc8 {[%clk 0:00:06.4]} 42. Bc2 {[%clk 0:00:31.8]} 42... Kg7 {[%clk
0:00:07]} 43. Bxg6 {[%clk 0:00:31.6]} 43... Bxg4 {[%clk 0:00:06.7]} 44. Bf5
{[%clk 0:00:28.2]} 44... Be2 {[%clk 0:00:05.6]} 45. Be6 {[%clk 0:00:25.1]} 45...
Bf3 {[%clk 0:00:02.7]} 46. Kf4 {[%clk 0:00:24.6]} 46... Bg2 {[%clk 0:00:03.1]}
47. Ke5 {[%clk 0:00:24.2]} 47... Kf8 {[%clk 0:00:03.5]} 48. Bxd5 {[%clk
0:00:24.5]} 48... Bh3 {[%clk 0:00:04.2]} 49. Kd6 {[%clk 0:00:24]} 49... Ke8
{[%clk 0:00:04.4]} 50. Be6 {[%clk 0:00:24.1]} 50... Kd8 {[%clk 0:00:04.5]} 51.
Bxh3 {[%clk 0:00:23.7]} 1-0

[Event "*** Titled Tuesday Blitz"]
[Site "Chess.com"]
[Date "2021.02.02"]
[Round "5"]
[White "temiksmozg"]
[Black "eljanov"]
[Result "1-0"]
[WhiteElo "2629"]
[BlackElo "2875"]
[TimeControl "180+1"]
[EndTime "10:59:19 PST"]
[Termination "temiksmozg won on time"]

1. d4 {[%clk 0:03:00.9]} 1... Nf6 {[%clk 0:02:58.5]} 2. c4 {[%clk 0:03:01.2]}
2... e6 {[%clk 0:02:56.9]} 3. Nc3 {[%clk 0:03:01.6]} 3... Bb4 {[%clk 0:02:56.6]}
4. Qc2 {[%clk 0:03:02.1]} 4... O-O {[%clk 0:02:56.2]} 5. a3 {[%clk 0:03:02.6]}
5... Bxc3+ {[%clk 0:02:56.2]} 6. Qxc3 {[%clk 0:03:03.5]} 6... d6 {[%clk
0:02:53.5]} 7. Nf3 {[%clk 0:02:57.2]} 7... Nbd7 {[%clk 0:02:50.5]} 8. e3 {[%clk
0:02:56]} 8... Re8 {[%clk 0:02:43.9]} 9. Be2 {[%clk 0:02:56]} 9... e5 {[%clk
0:02:44.1]} 10. O-O {[%clk 0:02:55.9]} 10... e4 {[%clk 0:02:43.2]} 11. Nd2
{[%clk 0:02:55.3]} 11... c6 {[%clk 0:02:43.8]} 12. a4 {[%clk 0:02:51.1]} 12...
d5 {[%clk 0:02:40.9]} 13. b4 {[%clk 0:02:46.7]} 13... Nf8 {[%clk 0:02:40.5]} 14.
b5 {[%clk 0:02:44.7]} 14... Ng6 {[%clk 0:02:35.7]} 15. a5 {[%clk 0:02:34.3]}
15... Bg4 {[%clk 0:02:31.1]} 16. Re1 {[%clk 0:02:19.7]} 16... Bxe2 {[%clk
0:02:28.4]} 17. Rxe2 {[%clk 0:02:19.4]} 17... a6 {[%clk 0:02:28.9]} 18. bxc6
{[%clk 0:02:15.5]} 18... bxc6 {[%clk 0:02:29]} 19. Ba3 {[%clk 0:02:14.2]} 19...
Nh4 {[%clk 0:02:28]} 20. Nf1 {[%clk 0:02:12.8]} 20... Qd7 {[%clk 0:02:27.2]} 21.
Rc2 {[%clk 0:01:54.4]} 21... h5 {[%clk 0:02:24.4]} 22. cxd5 {[%clk 0:01:52.4]}
22... cxd5 {[%clk 0:02:25.3]} 23. Qc7 {[%clk 0:01:51]} 23... Qf5 {[%clk
0:02:13.6]} 24. Ng3 {[%clk 0:01:48.7]} 24... Qg6 {[%clk 0:02:10.1]} 25. Qf4
{[%clk 0:01:45]} 25... Qg4 {[%clk 0:01:35.8]} 26. Bd6 {[%clk 0:01:31.2]} 26...
Rec8 {[%clk 0:01:04.6]} 27. Rc5 {[%clk 0:01:29.4]} 27... Qxf4 {[%clk 0:00:42.5]}
28. Bxf4 {[%clk 0:01:28.2]} 28... Ng6 {[%clk 0:00:40.4]} 29. Bg5 {[%clk
0:01:24]} 29... Nh7 {[%clk 0:00:35.5]} 30. Rxd5 {[%clk 0:01:08.2]} 30... Rab8
{[%clk 0:00:33.3]} 31. Nxh5 {[%clk 0:00:58.4]} 31... Rc2 {[%clk 0:00:26.2]} 32.
Nf4 {[%clk 0:00:52.3]} 32... Nxg5 {[%clk 0:00:23]} 33. Nxg6 {[%clk 0:00:48.4]}
33... Ne6 {[%clk 0:00:14.4]} 34. Ne7+ {[%clk 0:00:34.7]} 34... Kf8 {[%clk
0:00:14.3]} 35. Nf5 {[%clk 0:00:35.1]} 35... g6 {[%clk 0:00:13.3]} 36. Ng3
{[%clk 0:00:26.1]} 36... f5 {[%clk 0:00:13.8]} 37. h4 {[%clk 0:00:21.1]} 37...
Rbb2 {[%clk 0:00:02.6]} 38. Rf1 {[%clk 0:00:21.3]} 38... f4 {[%clk 0:00:03.1]}
39. Nxe4 {[%clk 0:00:21.2]} 39... fxe3 {[%clk 0:00:03]} 40. fxe3+ {[%clk
0:00:22.1]} 40... Ke7 {[%clk 0:00:03.5]} 41. Rf2 {[%clk 0:00:21]} 41... Rxf2
{[%clk 0:00:03.6]} 42. Nxf2 {[%clk 0:00:21.9]} 42... Re2 {[%clk 0:00:02.1]} 43.
Re5 {[%clk 0:00:20.6]} 43... Kd7 {[%clk 0:00:01.8]} 44. Ng4 {[%clk 0:00:19.8]}
44... Ra2 {[%clk 0:00:01]} 45. Nf6+ {[%clk 0:00:18]} 1-0

[Event "*** Titled Tuesday Blitz"]
[Site "Chess.com"]
[Date "2021.02.02"]
[Round "5"]
[White "Kotofeyca"]
[Black "Frolyanov_D"]
[Result "1/2-1/2"]
[WhiteElo "2405"]
[BlackElo "2603"]
[TimeControl "180+1"]
[EndTime "10:59:19 PST"]
[Termination "Game drawn by repetition"]

1. d4 {[%clk 0:03:00.9]} 1... d5 {[%clk 0:02:59.6]} 2. c4 {[%clk 0:03:00]} 2...
e6 {[%clk 0:02:59.3]} 3. Nc3 {[%clk 0:03:00.1]} 3... c6 {[%clk 0:02:59]} 4. cxd5
{[%clk 0:03:00.1]} 4... exd5 {[%clk 0:02:57.7]} 5. Qc2 {[%clk 0:03:00.5]} 5...
Na6 {[%clk 0:02:56.2]} 6. a3 {[%clk 0:02:57.7]} 6... g6 {[%clk 0:02:55.7]} 7.
Bf4 {[%clk 0:02:54.3]} 7... Bd6 {[%clk 0:02:53.1]} 8. Bxd6 {[%clk 0:02:49.1]}
8... Qxd6 {[%clk 0:02:54]} 9. e4 {[%clk 0:02:38]} 9... dxe4 {[%clk 0:02:54.4]}
10. Qxe4+ {[%clk 0:02:37.3]} 10... Be6 {[%clk 0:02:44.6]} 11. Bxa6 {[%clk
0:02:36.3]} 11... bxa6 {[%clk 0:02:45.1]} 12. Nf3 {[%clk 0:02:32.4]} 12... Nf6
{[%clk 0:02:33.2]} 13. Qe5 {[%clk 0:02:25.1]} 13... Qxe5+ {[%clk 0:02:31.8]} 14.
dxe5 {[%clk 0:02:24.7]} 14... Nd5 {[%clk 0:02:31.5]} 15. Ne4 {[%clk 0:02:20.4]}
15... O-O {[%clk 0:02:28.5]} 16. O-O-O {[%clk 0:02:16]} 16... a5 {[%clk
0:02:27.5]} 17. Nd4 {[%clk 0:02:03.2]} 17... c5 {[%clk 0:02:21.3]} 18. Nc6
{[%clk 0:01:42.4]} 18... Rfc8 {[%clk 0:01:54.7]} 19. Nf6+ {[%clk 0:01:05.9]}
19... Nxf6 {[%clk 0:01:47.6]} 20. Ne7+ {[%clk 0:01:02.6]} 20... Kf8 {[%clk
0:01:47.4]} 21. Nxc8 {[%clk 0:01:02.4]} 21... Ng4 {[%clk 0:01:36.1]} 22. Nd6
{[%clk 0:00:35]} 22... Nxf2 {[%clk 0:01:34.8]} 23. Rhe1 {[%clk 0:00:25]} 23...
Nxd1 {[%clk 0:01:34.3]} 24. Kxd1 {[%clk 0:00:25.7]} 24... Ke7 {[%clk 0:01:33.7]}
25. Ne4 {[%clk 0:00:20.8]} 25... c4 {[%clk 0:01:30.3]} 26. Kc1 {[%clk
0:00:20.5]} 26... Rd8 {[%clk 0:01:27.1]} 27. Re3 {[%clk 0:00:18.5]} 27... Rd5
{[%clk 0:01:21.8]} 28. Nc3 {[%clk 0:00:17.9]} 28... Rd4 {[%clk 0:01:10]} 29. h3
{[%clk 0:00:16.8]} 29... a6 {[%clk 0:01:08.6]} 30. g4 {[%clk 0:00:15]} 30... g5
{[%clk 0:01:05.2]} 31. Kc2 {[%clk 0:00:14.3]} 31... h6 {[%clk 0:01:04.9]} 32.
Ne2 {[%clk 0:00:14.3]} 32... Rd7 {[%clk 0:00:55.9]} 33. Kc3 {[%clk 0:00:14.8]}
33... Rd1 {[%clk 0:00:53.9]} 34. Nd4 {[%clk 0:00:15.2]} 34... Rc1+ {[%clk
0:00:52.5]} 35. Kd2 {[%clk 0:00:15]} 35... Rh1 {[%clk 0:00:51.7]} 36. Kc3 {[%clk
0:00:15.5]} 36... Rh2 {[%clk 0:00:50.7]} 37. Rf3 {[%clk 0:00:12.4]} 37... Bd5
{[%clk 0:00:47.5]} 38. Re3 {[%clk 0:00:11]} 38... Be6 {[%clk 0:00:40.4]} 39. Rf3
{[%clk 0:00:10.7]} 39... a4 {[%clk 0:00:40.6]} 40. Nc6+ {[%clk 0:00:10.2]} 40...
Kd7 {[%clk 0:00:39.4]} 41. Nd4 {[%clk 0:00:10.8]} 41... a5 {[%clk 0:00:38.4]}
42. Re3 {[%clk 0:00:10.6]} 42... Rh1 {[%clk 0:00:37.6]} 43. Nxe6 {[%clk
0:00:09.1]} 43... Kxe6 {[%clk 0:00:35.9]} 44. Kxc4 {[%clk 0:00:10]} 44... Rh2
{[%clk 0:00:33.1]} 45. Kb5 {[%clk 0:00:10.5]} 45... Rxb2+ {[%clk 0:00:31.3]} 46.
Kxa4 {[%clk 0:00:11.4]} 46... Rb8 {[%clk 0:00:25.4]} 47. Kxa5 {[%clk 0:00:11.6]}
47... Ra8+ {[%clk 0:00:25.4]} 48. Kb5 {[%clk 0:00:11.8]} 48... Rb8+ {[%clk
0:00:25.4]} 49. Ka5 {[%clk 0:00:12.1]} 49... Ra8+ {[%clk 0:00:25.6]} 50. Kb5
{[%clk 0:00:12.3]} 50... Rb8+ {[%clk 0:00:25.7]} 51. Kc6 {[%clk 0:00:12.7]}
51... Ra8 {[%clk 0:00:25.4]} 52. Kb7 {[%clk 0:00:13]} 52... Ra4 {[%clk
0:00:25.1]} 53. Kb6 {[%clk 0:00:13.1]} 53... Ra8 {[%clk 0:00:24.2]} 54. Kb5
{[%clk 0:00:12.7]} 1/2-1/2

[Event "*** Titled Tuesday Blitz"]
[Site "Chess.com"]
[Date "2021.02.02"]
[Round "5"]
[White "Evgeny81"]
[Black "NMJeevanK"]
[Result "1-0"]
[WhiteElo "2747"]
[BlackElo "2517"]
[TimeControl "180+1"]
[EndTime "10:59:25 PST"]
[Termination "Evgeny81 won by resignation"]

1. e4 {[%clk 0:03:00.9]} 1... e5 {[%clk 0:02:59.1]} 2. Nf3 {[%clk 0:03:00.3]}
2... Nc6 {[%clk 0:02:59.7]} 3. Bb5 {[%clk 0:03:00.6]} 3... a6 {[%clk 0:02:59.7]}
4. Ba4 {[%clk 0:03:00.4]} 4... Nf6 {[%clk 0:02:59.7]} 5. O-O {[%clk 0:03:00.7]}
5... Be7 {[%clk 0:03:00.3]} 6. d3 {[%clk 0:02:58.8]} 6... b5 {[%clk 0:03:00.7]}
7. Bb3 {[%clk 0:02:58.9]} 7... d6 {[%clk 0:03:01.4]} 8. a4 {[%clk 0:02:57.1]}
8... Rb8 {[%clk 0:03:00.1]} 9. axb5 {[%clk 0:02:56.1]} 9... axb5 {[%clk
0:03:01]} 10. Nc3 {[%clk 0:02:56.2]} 10... O-O {[%clk 0:03:00.7]} 11. h3 {[%clk
0:02:52.7]} 11... Nd4 {[%clk 0:02:57.4]} 12. Nxd4 {[%clk 0:02:50.7]} 12... exd4
{[%clk 0:02:58.3]} 13. Ne2 {[%clk 0:02:49.9]} 13... c5 {[%clk 0:02:58.3]} 14.
Nf4 {[%clk 0:02:44.6]} 14... Bb7 {[%clk 0:02:51.6]} 15. Qf3 {[%clk 0:02:42.5]}
15... Kh8 {[%clk 0:02:27.9]} 16. Re1 {[%clk 0:02:31.7]} 16... Nd7 {[%clk
0:02:21.3]} 17. Bd5 {[%clk 0:02:14]} 17... Ne5 {[%clk 0:02:12.7]} 18. Qe2 {[%clk
0:01:55.4]} 18... Bc8 {[%clk 0:01:55.9]} 19. Ra7 {[%clk 0:01:44.7]} 19... Bg5
{[%clk 0:01:45.5]} 20. Bd2 {[%clk 0:01:44.1]} 20... f5 {[%clk 0:01:33.1]} 21.
Nh5 {[%clk 0:01:31.2]} 21... f4 {[%clk 0:01:12.3]} 22. Rxg7 {[%clk 0:01:19.5]}
22... Bh6 {[%clk 0:01:01.1]} 23. Ra7 {[%clk 0:01:07.5]} 23... Qh4 {[%clk
0:00:40.6]} 24. Rea1 {[%clk 0:00:34.1]} 24... f3 {[%clk 0:00:35.2]} 25. Bxh6
{[%clk 0:00:32.7]} 25... Rg8 {[%clk 0:00:12.6]} 26. Bxg8 {[%clk 0:00:18.5]}
26... fxe2 {[%clk 0:00:05.8]} 27. Bg7+ {[%clk 0:00:18.6]} 27... Kxg8 {[%clk
0:00:06.5]} 28. Nf6+ {[%clk 0:00:19]} 28... Qxf6 {[%clk 0:00:07.1]} 29. Bxf6
{[%clk 0:00:19.9]} 29... c4 {[%clk 0:00:04.7]} 30. Bxe5 {[%clk 0:00:15.1]} 30...
dxe5 {[%clk 0:00:04.4]} 31. Re1 {[%clk 0:00:15.2]} 31... c3 {[%clk 0:00:03.9]}
32. b4 {[%clk 0:00:10.3]} 32... Be6 {[%clk 0:00:03.6]} 33. Rxe2 {[%clk 0:00:10]}
33... Rc8 {[%clk 0:00:02.3]} 34. Ra5 {[%clk 0:00:08.5]} 34... Rb8 {[%clk
0:00:02.4]} 35. f4 {[%clk 0:00:08.6]} 35... exf4 {[%clk 0:00:02.5]} 36. Rf2
{[%clk 0:00:09.1]} 36... Kg7 {[%clk 0:00:01.6]} 37. Rxf4 {[%clk 0:00:09.3]}
37... Bf7 {[%clk 0:00:02.5]} 38. Ra7 {[%clk 0:00:07.9]} 38... Kg6 {[%clk
0:00:02.6]} 39. Raxf7 {[%clk 0:00:06.9]} 39... Rb6 {[%clk 0:00:03.5]} 40. g4
{[%clk 0:00:06]} 40... Ra6 {[%clk 0:00:03.4]} 41. Kg2 {[%clk 0:00:06.1]} 41...
h5 {[%clk 0:00:02.6]} 42. Kg3 {[%clk 0:00:06.2]} 42... h4+ {[%clk 0:00:02.8]}
43. Kxh4 {[%clk 0:00:05.3]} 43... Rc6 {[%clk 0:00:03.3]} 44. R4f6+ {[%clk
0:00:05.4]} 44... Rxf6 {[%clk 0:00:03.3]} 45. Rxf6+ {[%clk 0:00:05.8]} 45...
Kxf6 {[%clk 0:00:03.8]} 46. Kh5 {[%clk 0:00:06.3]} 46... Ke5 {[%clk 0:00:04.7]}
47. Kg5 {[%clk 0:00:06.8]} 47... Kd6 {[%clk 0:00:04.8]} 48. h4 {[%clk
0:00:07.2]} 48... Ke5 {[%clk 0:00:03.8]} 49. h5 {[%clk 0:00:07.5]} 1-0

[Event "*** Titled Tuesday Blitz"]
[Site "Chess.com"]
[Date "2021.02.02"]
[Round "5"]
[White "KyronGriffith"]
[Black "BvsN"]
[Result "1-0"]
[WhiteElo "2522"]
[BlackElo "2372"]
[TimeControl "180+1"]
[EndTime "10:59:26 PST"]
[Termination "KyronGriffith won by checkmate"]

1. e4 {[%clk 0:03:00.9]} 1... c5 {[%clk 0:03:00]} 2. Nf3 {[%clk 0:02:57.5]} 2...
e6 {[%clk 0:03:00.4]} 3. b3 {[%clk 0:02:56.8]} 3... d6 {[%clk 0:02:57]} 4. Bb2
{[%clk 0:02:56.9]} 4... Nf6 {[%clk 0:02:56.7]} 5. Nc3 {[%clk 0:02:56.8]} 5... a6
{[%clk 0:02:54.1]} 6. g3 {[%clk 0:02:53.3]} 6... Nc6 {[%clk 0:02:51.6]} 7. Bg2
{[%clk 0:02:53.4]} 7... Be7 {[%clk 0:02:52.2]} 8. d4 {[%clk 0:02:53.4]} 8...
cxd4 {[%clk 0:02:52.2]} 9. Nxd4 {[%clk 0:02:54.3]} 9... Qc7 {[%clk 0:02:50.3]}
10. O-O {[%clk 0:02:51.9]} 10... Bd7 {[%clk 0:02:50.6]} 11. Re1 {[%clk
0:02:49.1]} 11... O-O {[%clk 0:02:50.6]} 12. h3 {[%clk 0:02:44.1]} 12... Rac8
{[%clk 0:02:48.2]} 13. Nde2 {[%clk 0:02:41.6]} 13... b5 {[%clk 0:02:42.5]} 14.
a3 {[%clk 0:02:40.2]} 14... Rfd8 {[%clk 0:02:34.4]} 15. Kh2 {[%clk 0:02:39.6]}
15... Bf8 {[%clk 0:02:31.9]} 16. Qd2 {[%clk 0:02:36.4]} 16... Ne5 {[%clk
0:02:21.6]} 17. f4 {[%clk 0:02:32.8]} 17... Ng6 {[%clk 0:02:21.8]} 18. Rac1
{[%clk 0:02:29.5]} 18... Bc6 {[%clk 0:02:19.1]} 19. Nd4 {[%clk 0:02:24.7]} 19...
Bb7 {[%clk 0:02:15.3]} 20. a4 {[%clk 0:02:18]} 20... e5 {[%clk 0:02:08.3]} 21.
Nf5 {[%clk 0:02:10.5]} 21... d5 {[%clk 0:01:56.3]} 22. fxe5 {[%clk 0:02:04.5]}
22... Nxe4 {[%clk 0:01:45.6]} 23. Nxe4 {[%clk 0:02:01]} 23... dxe4 {[%clk
0:01:45.2]} 24. Qe2 {[%clk 0:01:54]} 24... Nxe5 {[%clk 0:01:38.1]} 25. Bxe4
{[%clk 0:01:50.9]} 25... Bxe4 {[%clk 0:01:29.9]} 26. Qxe4 {[%clk 0:01:51.8]}
26... Rd2+ {[%clk 0:01:26.7]} 27. Re2 {[%clk 0:01:45.5]} 27... Qc6 {[%clk
0:01:11.9]} 28. Qxe5 {[%clk 0:01:22.2]} 28... Re8 {[%clk 0:00:52.2]} 29. Nh6+
{[%clk 0:01:06.8]} 29... Kh8 {[%clk 0:00:52.4]} 30. Qxe8 {[%clk 0:01:07.1]}
30... Qxe8 {[%clk 0:00:45.4]} 31. Rxd2 {[%clk 0:01:07.5]} 31... Qe3 {[%clk
0:00:38.3]} 32. Rcd1 {[%clk 0:00:40.7]} 32... f6 {[%clk 0:00:23.7]} 33. Ng4
{[%clk 0:00:32.5]} 33... Qf3 {[%clk 0:00:21.3]} 34. axb5 {[%clk 0:00:26]} 34...
axb5 {[%clk 0:00:20.4]} 35. Re1 {[%clk 0:00:23.6]} 35... h5 {[%clk 0:00:20]} 36.
Rf2 {[%clk 0:00:23.1]} 36... Qc6 {[%clk 0:00:13.9]} 37. Nxf6 {[%clk 0:00:21.3]}
37... b4 {[%clk 0:00:03.1]} 38. Nxh5 {[%clk 0:00:20.1]} 38... Kh7 {[%clk
0:00:02.6]} 39. Nxg7 {[%clk 0:00:11]} 39... Bc5 {[%clk 0:00:03]} 40. Rfe2 {[%clk
0:00:10.3]} 40... Qd5 {[%clk 0:00:02.8]} 41. Ne6 {[%clk 0:00:10.3]} 41... Bd6
{[%clk 0:00:02.9]} 42. Nf4 {[%clk 0:00:10.4]} 42... Bxf4 {[%clk 0:00:02.9]} 43.
gxf4 {[%clk 0:00:11.3]} 43... Qf5 {[%clk 0:00:03.1]} 44. Be5 {[%clk 0:00:11.1]}
44... Kh6 {[%clk 0:00:02.4]} 45. Rg2 {[%clk 0:00:11.4]} 45... Kh5 {[%clk
0:00:02.6]} 46. Rg5+ {[%clk 0:00:10.9]} 46... Kh4 {[%clk 0:00:03.2]} 47. Rg4+
{[%clk 0:00:09.7]} 47... Kh5 {[%clk 0:00:02.4]} 48. Reg1 {[%clk 0:00:09.8]}
48... Qxc2+ {[%clk 0:00:02.5]} 49. R1g2 {[%clk 0:00:10.4]} 49... Qd3 {[%clk
0:00:01.6]} 50. Rg5+ {[%clk 0:00:10.7]} 50... Kh6 {[%clk 0:00:02]} 51. Rg6+
{[%clk 0:00:10.9]} 51... Kh7 {[%clk 0:00:02.3]} 52. Rg7+ {[%clk 0:00:11]} 52...
Kh6 {[%clk 0:00:02.7]} 53. Rg8 {[%clk 0:00:11]} 53... Qxh3+ {[%clk 0:00:01.6]}
54. Kxh3 {[%clk 0:00:10.7]} 54... Kh5 {[%clk 0:00:02.2]} 55. Rh8# {[%clk
0:00:11]} 1-0

[Event "*** Titled Tuesday Blitz"]
[Site "Chess.com"]
[Date "2021.02.02"]
[Round "5"]
[White "ketster"]
[Black "CSB7"]
[Result "0-1"]
[WhiteElo "2377"]
[BlackElo "2589"]
[TimeControl "180+1"]
[EndTime "10:59:26 PST"]
[Termination "CSB7 won on time"]

1. d4 {[%clk 0:02:50]} 1... d5 {[%clk 0:02:56.7]} 2. c4 {[%clk 0:02:49]} 2... e6
{[%clk 0:02:56.1]} 3. Nf3 {[%clk 0:02:46.3]} 3... Nf6 {[%clk 0:02:55.6]} 4. g3
{[%clk 0:02:45.9]} 4... Bb4+ {[%clk 0:02:55.4]} 5. Bd2 {[%clk 0:02:45.1]} 5...
Bd6 {[%clk 0:02:55.5]} 6. Nc3 {[%clk 0:02:43.7]} 6... c6 {[%clk 0:02:54.9]} 7.
Qc2 {[%clk 0:02:42.6]} 7... Bb4 {[%clk 0:02:41.1]} 8. Bg2 {[%clk 0:02:30.6]}
8... O-O {[%clk 0:02:35.6]} 9. O-O {[%clk 0:02:25.4]} 9... dxc4 {[%clk
0:02:31.6]} 10. e4 {[%clk 0:02:18.1]} 10... a5 {[%clk 0:02:12.3]} 11. Rad1
{[%clk 0:02:01.6]} 11... b5 {[%clk 0:02:07.8]} 12. Bg5 {[%clk 0:01:50.6]} 12...
h6 {[%clk 0:01:55.9]} 13. e5 {[%clk 0:01:27.4]} 13... hxg5 {[%clk 0:01:40.8]}
14. Nxg5 {[%clk 0:01:27.3]} 14... g6 {[%clk 0:01:27.3]} 15. exf6 {[%clk
0:01:24]} 15... Qxf6 {[%clk 0:01:27.8]} 16. Nge4 {[%clk 0:01:19.8]} 16... Qg7
{[%clk 0:01:24.5]} 17. a3 {[%clk 0:01:06]} 17... Be7 {[%clk 0:01:21.9]} 18. Nc5
{[%clk 0:01:03.5]} 18... Ra7 {[%clk 0:01:07.8]} 19. N3e4 {[%clk 0:00:59.4]}
19... Rd8 {[%clk 0:01:03.5]} 20. Qc3 {[%clk 0:00:52.5]} 20... Nd7 {[%clk
0:01:00.1]} 21. Nxd7 {[%clk 0:00:48.5]} 21... Raxd7 {[%clk 0:01:01]} 22. Qxa5
{[%clk 0:00:46.3]} 22... Rxd4 {[%clk 0:00:59.9]} 23. Nc3 {[%clk 0:00:38.6]}
23... Rxd1 {[%clk 0:00:51.3]} 24. Nxd1 {[%clk 0:00:38.1]} 24... Bd7 {[%clk
0:00:43.8]} 25. Qc7 {[%clk 0:00:31.5]} 25... Kf8 {[%clk 0:00:16]} 26. Bxc6
{[%clk 0:00:23.6]} 26... Bxc6 {[%clk 0:00:16.9]} 27. Qxc6 {[%clk 0:00:23.4]}
27... Qe5 {[%clk 0:00:12.5]} 28. Nc3 {[%clk 0:00:22.4]} 28... Bxa3 {[%clk
0:00:09.7]} 29. Nxb5 {[%clk 0:00:12.4]} 29... Bc5 {[%clk 0:00:04.8]} 30. Nc3
{[%clk 0:00:09.3]} 30... Kg7 {[%clk 0:00:04.8]} 31. Ne4 {[%clk 0:00:07.9]} 31...
Bd4 {[%clk 0:00:04.4]} 32. Qb7 {[%clk 0:00:03.4]} 32... Rd5 {[%clk 0:00:03.1]}
33. Nc3 {[%clk 0:00:02.7]} 33... Bxc3 {[%clk 0:00:03]} 34. bxc3 {[%clk
0:00:03.6]} 34... Qxc3 {[%clk 0:00:03.9]} 35. Qc6 {[%clk 0:00:04.2]} 35... Qd3
{[%clk 0:00:02.7]} 36. Rc1 {[%clk 0:00:03.8]} 36... Rd4 {[%clk 0:00:03.1]} 37.
Qc5 {[%clk 0:00:04.1]} 37... Qe4 {[%clk 0:00:01.2]} 38. h4 {[%clk 0:00:02.1]}
38... Qd5 {[%clk 0:00:01.7]} 39. Qb4 {[%clk 0:00:01.2]} 39... Rd1+ {[%clk
0:00:01.8]} 0-1